[Event "*** Titled Tuesday 3|2 Blitz"]
[Site "Chess.com"]
[Date "2016.09.06"]
[Round "3"]
[White "macko06"]
[Black "cassoulet"]
[Result "1-0"]
[WhiteElo "2190"]
[BlackElo "2298"]
[TimeControl "180+2"]
[EndTime "11:37:52 PDT"]
[Termination "macko06 won by checkmate"]

1. d4 {[%clk 0:03:00.1]} 1... d5 {[%clk 0:03:00.6]} 2. c4 {[%clk 0:02:59.9]}
2... e6 {[%clk 0:03:02.1]} 3. Nf3 {[%clk 0:03:00]} 3... Nf6 {[%clk 0:03:03.6]}
4. g3 {[%clk 0:02:59]} 4... Be7 {[%clk 0:03:04.9]} 5. Bg2 {[%clk 0:02:56.3]}
5... O-O {[%clk 0:03:06.2]} 6. O-O {[%clk 0:02:56.7]} 6... dxc4 {[%clk
0:03:07.8]} 7. Qc2 {[%clk 0:02:57.1]} 7... a6 {[%clk 0:03:09]} 8. a4 {[%clk
0:02:57.7]} 8... Nc6 {[%clk 0:03:10.2]} 9. Qxc4 {[%clk 0:02:58.5]} 9... Bd7
{[%clk 0:03:11.2]} 10. Bg5 {[%clk 0:02:56.3]} 10... h6 {[%clk 0:02:55.6]} 11.
Bxf6 {[%clk 0:02:48.1]} 11... Bxf6 {[%clk 0:02:57.5]} 12. e3 {[%clk 0:02:49.5]}
12... Qe7 {[%clk 0:02:44.3]} 13. Nc3 {[%clk 0:02:48.8]} 13... Rfc8 {[%clk
0:02:44.5]} 14. Rfd1 {[%clk 0:02:44.1]} 14... Na5 {[%clk 0:02:44.8]} 15. Qe2
{[%clk 0:02:37.4]} 15... c5 {[%clk 0:02:39.4]} 16. Ne4 {[%clk 0:01:59.2]} 16...
Nb3 {[%clk 0:02:32.4]} 17. Ra3 {[%clk 0:01:47.5]} 17... c4 {[%clk 0:02:21.4]}
18. Nxf6+ {[%clk 0:01:46.8]} 18... Qxf6 {[%clk 0:02:23.3]} 19. Ne5 {[%clk
0:01:46.9]} 19... Rc7 {[%clk 0:02:11.8]} 20. Nxd7 {[%clk 0:01:35.6]} 20... Rxd7
{[%clk 0:02:13.7]} 21. Qxc4 {[%clk 0:01:36.1]} 21... Na5 {[%clk 0:02:15.2]} 22.
Qc5 {[%clk 0:01:31.3]} 22... Qd8 {[%clk 0:02:14.7]} 23. Rc3 {[%clk 0:01:28.9]}
23... Rb8 {[%clk 0:02:07.9]} 24. Rdc1 {[%clk 0:01:22.8]} 24... b6 {[%clk
0:02:07.3]} 25. Qc8 {[%clk 0:01:22.9]} 25... Rxc8 {[%clk 0:02:00.7]} 26. Rxc8
{[%clk 0:01:24.1]} 26... Kf8 {[%clk 0:02:01.9]} 27. Rxd8+ {[%clk 0:01:25]} 27...
Rxd8 {[%clk 0:02:03.8]} 28. Rc7 {[%clk 0:01:25.4]} 28... b5 {[%clk 0:02:00.7]}
29. axb5 {[%clk 0:01:23.9]} 29... axb5 {[%clk 0:02:02.6]} 30. Bf1 {[%clk
0:01:25]} 30... b4 {[%clk 0:02:00.3]} 31. Rc5 {[%clk 0:01:22.3]} 31... Ra8
{[%clk 0:02:00.5]} 32. Rb5 {[%clk 0:01:23.2]} 32... b3 {[%clk 0:02:01.9]} 33.
Be2 {[%clk 0:01:22.1]} 33... Ke7 {[%clk 0:02:02.1]} 34. Bd1 {[%clk 0:01:22]}
34... Nc4 {[%clk 0:02:00.7]} 35. Bxb3 {[%clk 0:01:17.1]} 35... Nxb2 {[%clk
0:02:01.2]} 36. Bxe6 {[%clk 0:01:15.9]} 36... Ra1+ {[%clk 0:02:02]} 37. Kg2
{[%clk 0:01:16.2]} 37... Nd3 {[%clk 0:02:03.9]} 38. Bc4 {[%clk 0:01:10.6]} 38...
Ne1+ {[%clk 0:02:04.9]} 39. Kh3 {[%clk 0:01:10.3]} 39... Rc1 {[%clk 0:02:00]}
40. Rb7+ {[%clk 0:01:10]} 40... Kd6 {[%clk 0:01:58.1]} 41. Bxf7 {[%clk
0:01:03.6]} 41... Nf3 {[%clk 0:01:58.7]} 42. Bh5 {[%clk 0:01:02.3]} 42... Ng5+
{[%clk 0:01:53.7]} 43. Kg4 {[%clk 0:01:03]} 43... Ne4 {[%clk 0:01:52.4]} 44. Kf3
{[%clk 0:00:52.8]} 44... Ng5+ {[%clk 0:01:51.1]} 45. Kg2 {[%clk 0:00:53.5]}
45... Rc2 {[%clk 0:01:52.1]} 46. Rxg7 {[%clk 0:00:51.9]} 46... Ke6 {[%clk
0:01:51.2]} 47. Rg6+ {[%clk 0:00:51.3]} 47... Ke7 {[%clk 0:01:52.5]} 48. Rxh6
{[%clk 0:00:51.9]} 48... Ne4 {[%clk 0:01:53.7]} 49. Rh7+ {[%clk 0:00:47]} 49...
Kf6 {[%clk 0:01:52.6]} 50. Rf7+ {[%clk 0:00:45.1]} 50... Kg5 {[%clk 0:01:53.9]}
51. Bd1 {[%clk 0:00:44.7]} 51... Rd2 {[%clk 0:01:54.5]} 52. h4+ {[%clk
0:00:43.9]} 52... Kg6 {[%clk 0:01:54.9]} 53. Bb3 {[%clk 0:00:43.4]} 53... Nd6
{[%clk 0:01:50.8]} 54. Rf4 {[%clk 0:00:41.5]} 54... Nf5 {[%clk 0:01:50.9]} 55.
Kf3 {[%clk 0:00:41.6]} 55... Nd6 {[%clk 0:01:48.1]} 56. Bd5 {[%clk 0:00:39.3]}
56... Kg7 {[%clk 0:01:41.7]} 57. Be6 {[%clk 0:00:33.2]} 57... Rb2 {[%clk
0:01:40.6]} 58. d5 {[%clk 0:00:34.6]} 58... Rd2 {[%clk 0:01:37.8]} 59. e4 {[%clk
0:00:35.7]} 59... Nc4 {[%clk 0:01:38.6]} 60. Kg4 {[%clk 0:00:32.1]} 60... Ne5+
{[%clk 0:01:37.6]} 61. Kf5 {[%clk 0:00:33.2]} 61... Nd3 {[%clk 0:01:36.9]} 62.
Rg4+ {[%clk 0:00:33.2]} 62... Kh6 {[%clk 0:01:38.6]} 63. f4 {[%clk 0:00:33.5]}
63... Nc5 {[%clk 0:01:38.6]} 64. Rg6+ {[%clk 0:00:31.3]} 64... Kh7 {[%clk
0:01:39.1]} 65. h5 {[%clk 0:00:32.6]} 65... Ra2 {[%clk 0:01:39]} 66. Kf6 {[%clk
0:00:33.3]} 66... Ra7 {[%clk 0:01:39.5]} 67. e5 {[%clk 0:00:33.9]} 67... Ne4+
{[%clk 0:01:40]} 68. Kf5 {[%clk 0:00:33.7]} 68... Nc5 {[%clk 0:01:40.5]} 69. d6
{[%clk 0:00:31.2]} 69... Ra8 {[%clk 0:01:41.4]} 70. Bd5 {[%clk 0:00:30.3]} 70...
Rf8+ {[%clk 0:01:42.1]} 71. Rf6 {[%clk 0:00:31.4]} 71... Re8 {[%clk 0:01:42.7]}
72. g4 {[%clk 0:00:32.4]} 72... Nd3 {[%clk 0:01:37.9]} 73. Be4 {[%clk
0:00:29.8]} 73... Nc5 {[%clk 0:01:35.2]} 74. d7 {[%clk 0:00:25.5]} 74... Rd8
{[%clk 0:01:34.7]} 75. e6 {[%clk 0:00:24]} 75... Kh8 {[%clk 0:01:30.7]} 76. Ke5
{[%clk 0:00:21.9]} 76... Rb8 {[%clk 0:01:30.5]} 77. Rf7 {[%clk 0:00:19]} 77...
Na6 {[%clk 0:01:24.4]} 78. Kf6 {[%clk 0:00:17.5]} 78... Nc5 {[%clk 0:01:22.5]}
79. Bf5 {[%clk 0:00:18.1]} 79... Nb7 {[%clk 0:01:20]} 80. g5 {[%clk 0:00:18.8]}
80... Nd6 {[%clk 0:01:20.9]} 81. g6 {[%clk 0:00:18.8]} 81... Ne8+ {[%clk
0:01:12.3]} 82. Ke7 {[%clk 0:00:19]} 82... Ng7 {[%clk 0:01:12.7]} 83. Bg4 {[%clk
0:00:17.2]} 83... Nxe6 {[%clk 0:01:10.1]} 84. Bxe6 {[%clk 0:00:16.4]} 84... Kg8
{[%clk 0:01:10]} 85. Rh7# {[%clk 0:00:14.6]} 1-0

[Event "*** Titled Tuesday 3|2 Blitz"]
[Site "Chess.com"]
[Date "2016.09.06"]
[Round "3"]
[White "Mischuk_D"]
[Black "Mornar1951"]
[Result "1/2-1/2"]
[WhiteElo "2487"]
[BlackElo "2547"]
[TimeControl "180+2"]
[EndTime "11:37:55 PDT"]
[Termination "Game drawn by stalemate"]

1. e4 {[%clk 0:03:02]} 1... e6 {[%clk 0:02:58.7]} 2. d4 {[%clk 0:03:02.7]} 2...
d5 {[%clk 0:03:00]} 3. Nd2 {[%clk 0:03:03.6]} 3... c5 {[%clk 0:03:00.2]} 4. exd5
{[%clk 0:03:04.2]} 4... Qxd5 {[%clk 0:03:02.1]} 5. dxc5 {[%clk 0:03:04.2]} 5...
Bxc5 {[%clk 0:03:02.2]} 6. Ngf3 {[%clk 0:03:05.4]} 6... Nf6 {[%clk 0:03:00.8]}
7. Bc4 {[%clk 0:03:06.2]} 7... Qc6 {[%clk 0:03:02]} 8. Qe2 {[%clk 0:03:07.3]}
8... a6 {[%clk 0:02:59.2]} 9. O-O {[%clk 0:03:07.5]} 9... O-O {[%clk 0:02:59.5]}
10. Ne5 {[%clk 0:03:07]} 10... Qc7 {[%clk 0:03:00]} 11. Ndf3 {[%clk 0:03:07.9]}
11... b5 {[%clk 0:02:50.7]} 12. Bb3 {[%clk 0:03:08.6]} 12... Bb7 {[%clk
0:02:45]} 13. Bf4 {[%clk 0:03:09]} 13... Qe7 {[%clk 0:02:34.6]} 14. a4 {[%clk
0:02:57.1]} 14... b4 {[%clk 0:02:24.6]} 15. Bg5 {[%clk 0:02:58.2]} 15... h6
{[%clk 0:02:18.7]} 16. Bh4 {[%clk 0:02:59.1]} 16... Nc6 {[%clk 0:02:18.1]} 17.
Rfd1 {[%clk 0:02:53.2]} 17... Nxe5 {[%clk 0:02:13.8]} 18. Nxe5 {[%clk
0:02:53.4]} 18... g5 {[%clk 0:02:14.3]} 19. Bg3 {[%clk 0:02:53.4]} 19... Rfd8
{[%clk 0:02:08]} 20. a5 {[%clk 0:02:46.5]} 20... Ne4 {[%clk 0:02:06.6]} 21. Nd3
{[%clk 0:02:27]} 21... Nxg3 {[%clk 0:02:02.5]} 22. hxg3 {[%clk 0:02:27.6]} 22...
Bd4 {[%clk 0:02:02.6]} 23. Ra4 {[%clk 0:02:23.4]} 23... Bg7 {[%clk 0:01:56.4]}
24. Nxb4 {[%clk 0:02:11.4]} 24... Rxd1+ {[%clk 0:01:46.1]} 25. Qxd1 {[%clk
0:02:12.5]} 25... Bxb2 {[%clk 0:01:44.9]} 26. Nd3 {[%clk 0:02:11.7]} 26... Bg7
{[%clk 0:01:44.5]} 27. Rb4 {[%clk 0:02:11]} 27... Rd8 {[%clk 0:01:40.4]} 28. Qe1
{[%clk 0:02:02.4]} 28... Qc7 {[%clk 0:01:29.3]} 29. Rc4 {[%clk 0:02:03.3]} 29...
Qd6 {[%clk 0:01:24.1]} 30. Ra4 {[%clk 0:01:49]} 30... Bc6 {[%clk 0:01:13.9]} 31.
Ra2 {[%clk 0:01:39.6]} 31... Bb5 {[%clk 0:01:14]} 32. Qe4 {[%clk 0:01:36.4]}
32... Qc7 {[%clk 0:01:01.5]} 33. c4 {[%clk 0:01:33.1]} 33... Bc6 {[%clk
0:00:57.7]} 34. Qe2 {[%clk 0:01:33.3]} 34... Qd6 {[%clk 0:00:52.7]} 35. Bc2
{[%clk 0:01:28.8]} 35... Qd4 {[%clk 0:00:45.2]} 36. Nb4 {[%clk 0:01:25]} 36...
Bb7 {[%clk 0:00:43.5]} 37. Ba4 {[%clk 0:01:23.1]} 37... Qc5 {[%clk 0:00:36]} 38.
Nc2 {[%clk 0:01:07.7]} 38... Qxa5 {[%clk 0:00:33.6]} 39. Ne3 {[%clk 0:01:08.7]}
39... Qc5 {[%clk 0:00:31.9]} 40. Rd2 {[%clk 0:01:04.8]} 40... Rxd2 {[%clk
0:00:30.9]} 41. Qxd2 {[%clk 0:01:06]} 41... Bd4 {[%clk 0:00:32.4]} 42. Nc2
{[%clk 0:01:07.1]} 42... Be5 {[%clk 0:00:32.3]} 43. Ne3 {[%clk 0:01:02.8]} 43...
Qd4 {[%clk 0:00:30.9]} 44. Qc1 {[%clk 0:00:59.8]} 44... Qe4 {[%clk 0:00:30.7]}
45. Bc2 {[%clk 0:00:59.6]} 45... Qd4 {[%clk 0:00:28.8]} 46. Bd1 {[%clk
0:00:56.6]} 46... Qb2 {[%clk 0:00:25]} 47. Qxb2 {[%clk 0:00:56]} 47... Bxb2
{[%clk 0:00:26.9]} 48. Ba4 {[%clk 0:00:57.2]} 48... Bd4 {[%clk 0:00:26.3]} 49.
Nc2 {[%clk 0:00:56.9]} 49... Bc5 {[%clk 0:00:27.1]} 50. Kf1 {[%clk 0:00:58.1]}
50... Kf8 {[%clk 0:00:27.3]} 51. Ne1 {[%clk 0:00:59]} 51... Ke7 {[%clk
0:00:25.4]} 52. Nd3 {[%clk 0:00:59.8]} 52... Kd6 {[%clk 0:00:26.7]} 53. f3
{[%clk 0:00:59.9]} 53... f6 {[%clk 0:00:22]} 54. Ke2 {[%clk 0:01:00.9]} 54...
Bc6 {[%clk 0:00:20.9]} 55. Bxc6 {[%clk 0:00:51.4]} 55... Kxc6 {[%clk 0:00:22.8]}
56. g4 {[%clk 0:00:52.9]} 56... a5 {[%clk 0:00:22.9]} 57. Kd2 {[%clk 0:00:54.1]}
57... a4 {[%clk 0:00:23]} 58. Kc3 {[%clk 0:00:55.3]} 58... Bd6 {[%clk
0:00:23.3]} 59. Nf2 {[%clk 0:00:46.6]} 59... f5 {[%clk 0:00:21.1]} 60. Nd3
{[%clk 0:00:43.9]} 60... fxg4 {[%clk 0:00:15.4]} 61. fxg4 {[%clk 0:00:45]} 61...
Be7 {[%clk 0:00:11.1]} 62. Nf2 {[%clk 0:00:45.2]} 62... Kb6 {[%clk 0:00:09.9]}
63. Ne4 {[%clk 0:00:46]} 63... Ka5 {[%clk 0:00:10.6]} 64. Kd4 {[%clk 0:00:33]}
64... a3 {[%clk 0:00:11.2]} 65. Kc3 {[%clk 0:00:33.8]} 65... Ka4 {[%clk
0:00:12.7]} 66. Kc2 {[%clk 0:00:33]} 66... Kb4 {[%clk 0:00:13.3]} 67. Nd2 {[%clk
0:00:31.1]} 67... Bf6 {[%clk 0:00:13.3]} 68. Kb1 {[%clk 0:00:32.3]} 68... Bc3
{[%clk 0:00:12.6]} 69. Ne4 {[%clk 0:00:31.6]} 69... Bd4 {[%clk 0:00:13.9]} 70.
Ka2 {[%clk 0:00:27.6]} 70... Kxc4 {[%clk 0:00:14.1]} 71. Kxa3 {[%clk 0:00:28.5]}
71... Kd3 {[%clk 0:00:15.8]} 72. Nd6 {[%clk 0:00:28.7]} 72... Ke2 {[%clk
0:00:15.5]} 73. Kb3 {[%clk 0:00:29.3]} 73... Kf2 {[%clk 0:00:16.2]} 74. Kc4
{[%clk 0:00:30.4]} 74... Bg7 {[%clk 0:00:16.4]} 75. Ne8 {[%clk 0:00:28.4]} 75...
Be5 {[%clk 0:00:15.2]} 76. Kd3 {[%clk 0:00:29.1]} 76... Kxg2 {[%clk 0:00:14.7]}
77. Ke4 {[%clk 0:00:30.3]} 77... Bh8 {[%clk 0:00:14.9]} 78. Nc7 {[%clk
0:00:30.8]} 78... Kg3 {[%clk 0:00:16.1]} 79. Nxe6 {[%clk 0:00:31.4]} 79... Kxg4
{[%clk 0:00:17.5]} 80. Ke3 {[%clk 0:00:30.3]} 80... Be5 {[%clk 0:00:16.9]} 81.
Kf2 {[%clk 0:00:30.9]} 81... Kf5 {[%clk 0:00:18]} 82. Nd8 {[%clk 0:00:29.2]}
82... h5 {[%clk 0:00:18]} 83. Nc6 {[%clk 0:00:29.9]} 83... h4 {[%clk 0:00:17.5]}
84. Ne7+ {[%clk 0:00:30.7]} 84... Ke4 {[%clk 0:00:18.1]} 85. Ng6 {[%clk
0:00:30.6]} 85... Kf5 {[%clk 0:00:18.8]} 86. Nxh4+ {[%clk 0:00:31.4]} 86... gxh4
{[%clk 0:00:19.3]} 87. Kg2 {[%clk 0:00:32.4]} 87... Kg4 {[%clk 0:00:20.2]} 88.
Kh1 {[%clk 0:00:33.4]} 88... h3 {[%clk 0:00:20.4]} 89. Kg1 {[%clk 0:00:34.5]}
89... h2+ {[%clk 0:00:21.8]} 90. Kh1 {[%clk 0:00:34.5]} 90... Kh3 {[%clk
0:00:23.5]} 1/2-1/2

[Event "*** Titled Tuesday 3|2 Blitz"]
[Site "Chess.com"]
[Date "2016.09.06"]
[Round "4"]
[White "yurisolo"]
[Black "ZEN-22"]
[Result "0-1"]
[WhiteElo "2483"]
[BlackElo "2288"]
[TimeControl "180+2"]
[EndTime "11:44:08 PDT"]
[Termination "ZEN-22 won by resignation"]

1. e4 {[%clk 0:03:01.9]} 1... c5 {[%clk 0:03:00.3]} 2. Nf3 {[%clk 0:03:03.5]}
2... Nf6 {[%clk 0:03:01.7]} 3. e5 {[%clk 0:03:03.3]} 3... Nd5 {[%clk 0:03:02.8]}
4. Nc3 {[%clk 0:03:05]} 4... Nb4 {[%clk 0:03:02.4]} 5. Bc4 {[%clk 0:03:01.2]}
5... d5 {[%clk 0:03:02.6]} 6. exd6 {[%clk 0:03:01.3]} 6... e6 {[%clk 0:03:02.1]}
7. Nb5 {[%clk 0:02:54.3]} 7... Bxd6 {[%clk 0:03:00.4]} 8. Nxd6+ {[%clk
0:02:54.9]} 8... Qxd6 {[%clk 0:03:01.1]} 9. O-O {[%clk 0:02:55.6]} 9... O-O
{[%clk 0:03:01.4]} 10. d3 {[%clk 0:02:53.7]} 10... N8c6 {[%clk 0:03:00.9]} 11.
a3 {[%clk 0:02:53.9]} 11... Nd5 {[%clk 0:03:01.7]} 12. Bd2 {[%clk 0:02:53.8]}
12... b6 {[%clk 0:03:02.5]} 13. Ng5 {[%clk 0:02:50.9]} 13... h6 {[%clk
0:03:02.2]} 14. Ne4 {[%clk 0:02:51.3]} 14... Qd7 {[%clk 0:03:03.1]} 15. Qg4
{[%clk 0:02:50.9]} 15... f5 {[%clk 0:03:03.1]} 16. Qg6 {[%clk 0:02:30]} 16...
fxe4 {[%clk 0:02:58.3]} 17. dxe4 {[%clk 0:02:31.9]} 17... Ne5 {[%clk 0:02:59]}
0-1

[Event "*** Titled Tuesday 3|2 Blitz"]
[Site "Chess.com"]
[Date "2016.09.06"]
[Round "4"]
[White "Rating-Schmating"]
[Black "Makalexa"]
[Result "1-0"]
[WhiteElo "2223"]
[BlackElo "2163"]
[TimeControl "180+2"]
[EndTime "11:45:33 PDT"]
[Termination "Rating-Schmating won by resignation"]

1. e4 {[%clk 0:03:01.9]} 1... e5 {[%clk 0:02:58.8]} 2. Nf3 {[%clk 0:03:01.9]}
2... Nc6 {[%clk 0:02:59.5]} 3. d4 {[%clk 0:03:01.9]} 3... exd4 {[%clk
0:02:57.4]} 4. Nxd4 {[%clk 0:03:02.6]} 4... Bc5 {[%clk 0:02:58.8]} 5. Nxc6
{[%clk 0:03:03.3]} 5... Qf6 {[%clk 0:02:59.7]} 6. Qf3 {[%clk 0:03:04]} 6... bxc6
{[%clk 0:02:58.3]} 7. Bc4 {[%clk 0:03:03.4]} 7... Qxf3 {[%clk 0:02:47.4]} 8.
gxf3 {[%clk 0:03:03.4]} 8... Ne7 {[%clk 0:02:48.7]} 9. Be3 {[%clk 0:03:02.7]}
9... Bxe3 {[%clk 0:02:43.7]} 10. fxe3 {[%clk 0:03:03.7]} 10... d5 {[%clk
0:02:44.6]} 11. Bd3 {[%clk 0:03:04.2]} 11... Rb8 {[%clk 0:02:41.4]} 12. b3
{[%clk 0:03:04.9]} 12... O-O {[%clk 0:02:36.4]} 13. Nc3 {[%clk 0:03:05.5]} 13...
f5 {[%clk 0:02:33.5]} 14. e5 {[%clk 0:02:58.9]} 14... c5 {[%clk 0:02:34.1]} 15.
f4 {[%clk 0:02:57.1]} 15... d4 {[%clk 0:02:31.2]} 16. exd4 {[%clk 0:02:57.6]}
16... cxd4 {[%clk 0:02:31.8]} 17. Nb5 {[%clk 0:02:59]} 17... Nd5 {[%clk
0:02:20.6]} 18. Bc4 {[%clk 0:02:54.4]} 18... Be6 {[%clk 0:02:21.4]} 19. Nxd4
{[%clk 0:02:54.5]} 19... Bf7 {[%clk 0:01:47.8]} 20. e6 {[%clk 0:02:51.4]} 20...
Rfe8 {[%clk 0:01:39.8]} 21. O-O-O {[%clk 0:02:51.7]} 21... Bxe6 {[%clk
0:01:31.6]} 22. Nxe6 {[%clk 0:02:52.3]} 22... Ne3 {[%clk 0:01:31.3]} 23. Nxc7+
{[%clk 0:02:47.8]} 23... Nxc4 {[%clk 0:01:32]} 24. Nxe8 {[%clk 0:02:49.2]} 1-0

[Event "*** Titled Tuesday 3|2 Blitz"]
[Site "Chess.com"]
[Date "2016.09.06"]
[Round "4"]
[White "Kawhi_Leonard2"]
[Black "chorejason"]
[Result "1-0"]
[WhiteElo "2004"]
[BlackElo "2027"]
[TimeControl "180+2"]
[EndTime "11:46:12 PDT"]
[Termination "Kawhi_Leonard2 won by resignation"]

1. e4 {[%clk 0:03:01.9]} 1... c5 {[%clk 0:03:00.7]} 2. Nf3 {[%clk 0:03:02.5]}
2... d6 {[%clk 0:03:02.2]} 3. d4 {[%clk 0:03:03.9]} 3... cxd4 {[%clk 0:03:04.1]}
4. Nxd4 {[%clk 0:03:04.7]} 4... Nf6 {[%clk 0:03:05.8]} 5. Nc3 {[%clk 0:03:06.1]}
5... g6 {[%clk 0:03:07.5]} 6. Be3 {[%clk 0:03:05.4]} 6... Bg7 {[%clk 0:03:09.1]}
7. f3 {[%clk 0:03:07.1]} 7... O-O {[%clk 0:03:11]} 8. Qd2 {[%clk 0:03:08.2]}
8... Nc6 {[%clk 0:03:12.9]} 9. O-O-O {[%clk 0:03:09.1]} 9... d5 {[%clk
0:03:14.4]} 10. exd5 {[%clk 0:03:08]} 10... Nxd5 {[%clk 0:03:14.9]} 11. Nxc6
{[%clk 0:03:09.9]} 11... bxc6 {[%clk 0:03:16.8]} 12. Bd4 {[%clk 0:03:10.8]}
12... Bxd4 {[%clk 0:03:14.9]} 13. Qxd4 {[%clk 0:03:12.6]} 13... Qb6 {[%clk
0:03:16.2]} 14. Na4 {[%clk 0:03:12.5]} 14... Qa5 {[%clk 0:03:06.9]} 15. b3
{[%clk 0:03:12.3]} 15... Bf5 {[%clk 0:02:38.5]} 16. g4 {[%clk 0:03:10.7]} 16...
Be6 {[%clk 0:02:36.8]} 17. h4 {[%clk 0:03:11]} 17... Rfd8 {[%clk 0:02:35.7]} 18.
Qe5 {[%clk 0:02:37.4]} 18... Qb4 {[%clk 0:02:21.9]} 19. Bc4 {[%clk 0:01:55.9]}
19... Qxa4 {[%clk 0:01:48.2]} 20. bxa4 {[%clk 0:01:53.7]} 1-0

[Event "*** Titled Tuesday 3|2 Blitz"]
[Site "Chess.com"]
[Date "2016.09.06"]
[Round "4"]
[White "Tash_Boy"]
[Black "Iball95"]
[Result "1-0"]
[WhiteElo "2411"]
[BlackElo "2516"]
[TimeControl "180+2"]
[EndTime "11:46:15 PDT"]
[Termination "Tash_Boy won by checkmate"]

1. e3 {[%clk 0:03:00.5]} 1... e5 {[%clk 0:02:56.9]} 2. d4 {[%clk 0:02:57.7]}
2... exd4 {[%clk 0:02:58]} 3. exd4 {[%clk 0:02:58.4]} 3... d5 {[%clk 0:02:59.3]}
4. Nc3 {[%clk 0:02:55.5]} 4... Nf6 {[%clk 0:02:57.9]} 5. Bg5 {[%clk 0:02:55.6]}
5... Be7 {[%clk 0:02:58.2]} 6. Qf3 {[%clk 0:02:55]} 6... c6 {[%clk 0:02:54.5]}
7. Bd3 {[%clk 0:02:55.4]} 7... h6 {[%clk 0:02:52.7]} 8. Bxf6 {[%clk 0:02:53.6]}
8... Bxf6 {[%clk 0:02:54.6]} 9. O-O-O {[%clk 0:02:53.8]} 9... O-O {[%clk
0:02:49.1]} 10. Nge2 {[%clk 0:02:53.6]} 10... Re8 {[%clk 0:02:47.4]} 11. h4
{[%clk 0:02:51.7]} 11... Bxh4 {[%clk 0:02:43.9]} 12. Nf4 {[%clk 0:02:47.5]}
12... Bg5 {[%clk 0:02:40.7]} 13. Kb1 {[%clk 0:02:43.5]} 13... Qf6 {[%clk
0:02:39.5]} 14. Nce2 {[%clk 0:02:43.7]} 14... Nd7 {[%clk 0:02:35.3]} 15. Qg3
{[%clk 0:02:44.2]} 15... Bxf4 {[%clk 0:02:12]} 16. Nxf4 {[%clk 0:02:44.2]} 16...
Qg5 {[%clk 0:02:11.6]} 17. Bh7+ {[%clk 0:02:17.3]} 17... Kf8 {[%clk 0:02:08.6]}
18. Qf3 {[%clk 0:02:18.1]} 18... Nf6 {[%clk 0:02:08.6]} 19. Rde1 {[%clk
0:02:10.1]} 19... Rxe1+ {[%clk 0:02:03.3]} 20. Rxe1 {[%clk 0:02:09.8]} 20...
Nxh7 {[%clk 0:01:55.3]} 21. Qa3+ {[%clk 0:02:10.2]} 21... Kg8 {[%clk 0:01:49.3]}
22. Re8+ {[%clk 0:02:10.2]} 22... Nf8 {[%clk 0:01:50.3]} 23. Qxf8+ {[%clk
0:02:10.8]} 23... Kh7 {[%clk 0:01:47.5]} 24. Qh8# {[%clk 0:02:11.6]} 1-0

[Event "*** Titled Tuesday 3|2 Blitz"]
[Site "Chess.com"]
[Date "2016.09.06"]
[Round "4"]
[White "VMikhalevski"]
[Black "Dlugy"]
[Result "0-1"]
[WhiteElo "2436"]
[BlackElo "2562"]
[TimeControl "180+2"]
[EndTime "11:47:26 PDT"]
[Termination "Dlugy won by resignation"]

1. Nf3 {[%clk 0:03:01.9]} 1... Nf6 {[%clk 0:02:59.4]} 2. g3 {[%clk 0:03:02.8]}
2... g6 {[%clk 0:03:00.7]} 3. b3 {[%clk 0:03:03.4]} 3... Bg7 {[%clk 0:03:02.6]}
4. Bb2 {[%clk 0:03:05]} 4... O-O {[%clk 0:03:04.2]} 5. Bg2 {[%clk 0:03:06.4]}
5... a5 {[%clk 0:03:05.4]} 6. a4 {[%clk 0:03:05.9]} 6... Nc6 {[%clk 0:03:06]} 7.
O-O {[%clk 0:03:05.2]} 7... d5 {[%clk 0:03:05.6]} 8. e3 {[%clk 0:02:57.7]} 8...
Re8 {[%clk 0:03:04.3]} 9. d4 {[%clk 0:02:58]} 9... Bf5 {[%clk 0:02:55.4]} 10.
Na3 {[%clk 0:02:56.6]} 10... Be4 {[%clk 0:02:44.3]} 11. Qe2 {[%clk 0:02:45.3]}
11... Nd7 {[%clk 0:02:35.5]} 12. Rfd1 {[%clk 0:02:44]} 12... Qc8 {[%clk
0:02:30]} 13. Nb5 {[%clk 0:02:37.7]} 13... e5 {[%clk 0:02:24.3]} 14. c4 {[%clk
0:02:25.2]} 14... exd4 {[%clk 0:02:23.3]} 15. Nfxd4 {[%clk 0:02:24.6]} 15...
Nxd4 {[%clk 0:02:21.8]} 16. Bxd4 {[%clk 0:02:24.1]} 16... Bxd4 {[%clk
0:02:20.4]} 17. Rxd4 {[%clk 0:02:22.1]} 17... Nc5 {[%clk 0:02:19.9]} 18. Qd1
{[%clk 0:02:18.9]} 18... dxc4 {[%clk 0:02:10.5]} 19. Rxc4 {[%clk 0:02:14.8]}
19... Rd8 {[%clk 0:01:53.1]} 20. Qe1 {[%clk 0:01:53.4]} 20... Bxg2 {[%clk
0:01:51.2]} 21. Rxc5 {[%clk 0:01:53.3]} 21... Qh3 {[%clk 0:01:42.7]} 22. Rxc7
{[%clk 0:01:48]} 22... Rd5 {[%clk 0:01:38]} 23. Rc4 {[%clk 0:01:24.4]} 23... Rh5
{[%clk 0:01:36]} 24. f4 {[%clk 0:00:57.3]} 24... Qxh2+ {[%clk 0:01:35.3]} 25.
Kf2 {[%clk 0:00:59]} 25... Be4+ {[%clk 0:01:34.7]} 0-1

[Event "*** Titled Tuesday 3|2 Blitz"]
[Site "Chess.com"]
[Date "2016.09.06"]
[Round "4"]
[White "Tesla37"]
[Black "E-Shaposhnikov"]
[Result "0-1"]
[WhiteElo "2592"]
[BlackElo "2664"]
[TimeControl "180+2"]
[EndTime "11:47:46 PDT"]
[Termination "E-Shaposhnikov won by resignation"]

1. e4 {[%clk 0:03:01.9]} 1... c5 {[%clk 0:02:55.7]} 2. Nf3 {[%clk 0:03:02.5]}
2... e6 {[%clk 0:02:56.9]} 3. d4 {[%clk 0:03:02.8]} 3... cxd4 {[%clk 0:02:58.6]}
4. Nxd4 {[%clk 0:03:04.2]} 4... a6 {[%clk 0:02:58.8]} 5. Nc3 {[%clk 0:03:04.9]}
5... Qc7 {[%clk 0:02:59.5]} 6. Bd3 {[%clk 0:03:04.8]} 6... Nc6 {[%clk
0:02:59.8]} 7. Nxc6 {[%clk 0:03:03.1]} 7... dxc6 {[%clk 0:03:01.7]} 8. O-O
{[%clk 0:03:02.4]} 8... e5 {[%clk 0:03:03.4]} 9. f4 {[%clk 0:03:02.7]} 9... Nf6
{[%clk 0:03:04.1]} 10. f5 {[%clk 0:02:56.7]} 10... b5 {[%clk 0:03:01.9]} 11. Kh1
{[%clk 0:02:56.6]} 11... Be7 {[%clk 0:02:59.8]} 12. a4 {[%clk 0:02:57.1]} 12...
Bb7 {[%clk 0:02:55.1]} 13. Qf3 {[%clk 0:02:56.7]} 13... O-O {[%clk 0:02:48.3]}
14. Be3 {[%clk 0:02:53.2]} 14... h6 {[%clk 0:02:35.9]} 15. Rad1 {[%clk 0:02:24]}
15... Rfd8 {[%clk 0:02:29.6]} 16. b3 {[%clk 0:02:22.2]} 16... Rd7 {[%clk
0:02:23.9]} 17. Rg1 {[%clk 0:02:13.5]} 17... Rad8 {[%clk 0:02:21]} 18. g4 {[%clk
0:02:03]} 18... b4 {[%clk 0:02:21.4]} 19. Ne2 {[%clk 0:01:53.6]} 19... Nxe4
{[%clk 0:02:06.8]} 20. Bxe4 {[%clk 0:01:34.5]} 20... Rxd1 {[%clk 0:02:08.7]} 21.
Ng3 {[%clk 0:01:05.8]} 21... Rxg1+ {[%clk 0:02:08.7]} 22. Bxg1 {[%clk
0:01:06.3]} 22... Rd7 {[%clk 0:02:01.1]} 23. f6 {[%clk 0:01:00]} 23... Bxf6
{[%clk 0:01:58.1]} 24. Qf5 {[%clk 0:01:00.7]} 24... c5 {[%clk 0:01:57.8]} 25.
Qh7+ {[%clk 0:01:01.2]} 25... Kf8 {[%clk 0:01:57.2]} 26. Qh8+ {[%clk 0:01:01.8]}
26... Ke7 {[%clk 0:01:53.5]} 27. Nf5+ {[%clk 0:01:01.6]} 27... Ke6 {[%clk
0:01:54.7]} 28. Qe8+ {[%clk 0:00:59.5]} 28... Re7 {[%clk 0:01:49.1]} 0-1